fUSD/lending_fUSD_20250106
["ID","MTS","AMOUNT","RATE_DAILY","PERIOD"]
[347842210,1736148646842,-500.0,0.00010953,2]
[347842211,1736148646851,-500.0,0.00010953,2]
[347842212,1736148646859,-500.0,0.00010953,2]
[347842213,1736148646868,-500.0,0.00010953,2]
[347842214,1736148646877,-500.0,0.00010953,2]
[347842215,1736148646887,-500.0,0.00010953,2]
[347842216,1736148646898,-500.0,0.00010953,2]
[347842217,1736148646908,-500.0,0.00010953,2]
[347842218,1736148646918,-552.89,0.00010953,2]
[347842219,1736148646929,-500.0,0.00010953,2]
[347842220,1736148646939,-249.36155622,0.00010953,2]
[347842221,1736148646950,-500.0,0.00010953,2]
[347842222,1736148646960,-500.0,0.00010953,2]
[347842223,1736148646970,-500.0,0.00010953,2]
[347842224,1736148646980,-821.3,0.00010953,2]
[347842225,1736148646991,-532.02568075,0.00010953,2]
[347842226,1736148647001,-500.0,0.00010953,2]
[347842227,1736148647012,-1149.3,0.00010953,2]
[347842228,1736148647022,-621.11,0.00010953,2]
[347842229,1736148647033,-500.0,0.00010953,2]
[347842230,1736148647043,-984.11,0.00010953,2]
[347842231,1736148647053,-805.95,0.00010953,2]
[347842232,1736148647063,-572.14,0.00010953,2]
[347842233,1736148647073,-500.0,0.00010953,2]
[347842234,1736148647083,-2816.88,0.00010953,2]
[347842235,1736148647093,-500.0,0.00010954,2]
[347842236,1736148647103,-500.0,0.00010954,2]
[347842237,1736148647113,-736.95,0.00010954,2]
[347842238,1736148647122,-545.67,0.00010954,2]
[347842239,1736148647132,-646.02,0.00010954,2]
[347842240,1736148647142,-500.0,0.00010954,2]
[347842241,1736148647152,-721.18,0.00010954,2]
[347842242,1736148647162,-1480.31,0.00010954,2]
[347842243,1736148647173,-500.0,0.00010954,2]
[347842244,1736148647184,-500.0,0.00010954,2]
[347842245,1736148647194,-571.28984894,0.00010954,2]
[347842246,1736148647205,-500.0,0.00010954,2]
[347842247,1736148647215,-347.95411251,0.00010954,2]
[347842248,1736148647226,-4310.55,0.00010954,2]
[347842249,1736148647236,-500.0,0.00010954,2]
[347842250,1736148647247,-500.0,0.00010954,2]
[347842251,1736148647257,-500.0,0.00010954,2]
[347842252,1736148647267,-3774.3,0.00010954,2]
[347842253,1736148647277,-500.0,0.00010954,2]
[347842254,1736148647287,-500.0,0.00010954,2]
[347842255,1736148647297,-500.0,0.00010954,2]
[347842256,1736148647307,-500.0,0.00010954,2]
[347842257,1736148647318,-500.0,0.00010954,2]
[347842258,1736148647328,-500.0,0.00010954,2]
[347842259,1736148647338,-500.0,0.00010954,2]
[347842260,1736148647348,-500.0,0.00010954,2]
[347842261,1736148647358,-1469.44,0.00010954,2]
[347842262,1736148647369,-500.0,0.00010954,2]
[347842263,1736148647382,-500.0,0.00010954,2]
[347842264,1736148647392,-500.0,0.00010954,2]
[347842265,1736148647403,-500.0,0.00010954,2]
[347842266,1736148647414,-500.0,0.00010954,2]
[347842267,1736148647424,-2509.17,0.00010954,2]
[347842268,1736148647434,-681.73,0.00010954,2]
[347842269,1736148647445,-500.0,0.00010954,2]
[347842270,1736148647455,-587.7,0.00010954,2]
[347842271,1736148647466,-572.64,0.00010954,2]
[347842272,1736148647476,-500.0,0.00010954,2]
[347842273,1736148647487,-500.0,0.00010954,2]
[347842274,1736148647498,-500.0,0.00010954,2]
[347842275,1736148647508,-500.0,0.00010954,2]
[347842276,1736148647519,-1289.22,0.00010954,2]
[347842277,1736148647530,-633.2,0.00010954,2]
[347842278,1736148647540,-1036.88,0.00010954,2]
[347842279,1736148647550,-1030.05,0.00010954,2]
[347842280,1736148647560,-1973.91,0.00010954,2]
[347842281,1736148647570,-500.0,0.00010955,2]
[347842282,1736148647580,-1103.0,0.00010955,2]
[347842283,1736148647590,-3053.59,0.00010955,2]
[347842284,1736148647600,-1157.84,0.00010955,2]
[347842285,1736148647610,-2170.94,0.00010955,2]
[347842286,1736148647620,-1422.85,0.00010955,2]
[347842287,1736148647630,-640.8,0.00010955,2]
[347842288,1736148647640,-1110.1,0.00010955,2]
[347842289,1736148647650,-1977.09,0.00010955,2]
[347842290,1736148647660,-1028.69,0.00010955,2]
[347842291,1736148647853,-640.98,0.00010955,2]
[347842292,1736148647863,-507.4,0.00010955,2]
[347842293,1736148647874,-500.0,0.00010955,2]
[347842294,1736148647884,-816.57,0.00010955,2]
[347842295,1736148647893,-420.22812554,0.00010956,2]
[347842296,1736148647903,-500.0,0.00010956,2]
[347842297,1736148647912,-1000.0,0.00010956,2]
[347842298,1736148647922,-500.0,0.00010956,2]
[347842299,1736148647931,-500.0,0.00010956,2]
[347842300,1736148647942,-1548.44,0.00010956,2]
[347842301,1736148647951,-1173.64,0.00010956,2]
[347842302,1736148647961,-400.0,0.00010986,2]
[347842303,1736148647971,-550.0,0.00011,2]
[347842304,1736148647981,-220.0,0.00011,4]
[347842305,1736148647991,-205.0,0.00011,3]
[347842306,1736148648000,-205.0,0.00011,2]
[347842307,1736148648010,-155.76501918,0.0001102,2]
[347842308,1736148648020,-1435.81,0.00011028,2]
[347842309,1736148648030,-1702.32,0.00011028,2]
[347842310,1736148648040,-918.57,0.00011028,2]
[347842311,1736148648050,-500.0,0.00011028,2]
[347842312,1736148648060,-2016.59,0.00011028,2]
[347842313,1736148648070,-360.53467264,0.00011028,2]
[347842314,1736148648080,-500.0,0.00011028,2]
[347842315,1736148648090,-258.87,0.00011028,2]
[347842316,1736148648100,-976.71,0.00011028,2]
[347842317,1736148648110,-500.0,0.00011028,2]
[347842318,1736148648120,-995.11,0.00011028,2]
[347842319,1736148648130,-500.0,0.00011028,2]
[347842320,1736148648139,-500.0,0.00011028,2]
[347842321,1736148648149,-500.0,0.00011028,2]
[347842322,1736148648158,-500.0,0.00011028,2]
[347842323,1736148648168,-228.15632485,0.00011047,2]
[347842324,1736148648178,-150.0,0.00011047,2]
[347842325,1736148648188,-500.0,0.00011093,2]
[347842326,1736148648197,-519.68,0.00011093,2]
[347842327,1736148648207,-1473.23,0.00011093,2]
[347842328,1736148648217,-500.0,0.00011093,2]
[347842329,1736148648226,-4065.12,0.00011093,2]
[347842330,1736148648236,-684.4,0.00011093,2]
[347842331,1736148648246,-500.0,0.00011093,2]
[347842332,1736148648255,-500.0,0.00011093,2]
[347842333,1736148648265,-500.0,0.00011093,2]
[347842334,1736148648275,-1315.93,0.00011093,2]
[347842335,1736148648284,-500.0,0.00011093,2]
[347842336,1736148648294,-2032.42,0.00011093,2]
[347842337,1736148648303,-500.0,0.00011093,2]
[347842338,1736148648313,-542.92,0.00011093,2]
[347842339,1736148648322,-1026.48,0.00011093,2]
[347842340,1736148648332,-500.0,0.00011093,2]
[347842341,1736148648341,-1012.71,0.00011093,2]
[347842342,1736148648351,-1489.38,0.00011093,2]
[347842343,1736148648360,-952.38,0.00011093,2]
[347842344,1736148648373,-737.3,0.00011093,2]
[347842345,1736148648383,-2722.84,0.00011093,2]
[347842346,1736148648392,-832.47,0.00011093,2]
[347842347,1736148648402,-615.76271193,0.00011094,2]
[347842348,1736148648411,-500.0,0.00011094,2]
[347842349,1736148648423,-500.0,0.00011094,2]
[347842350,1736148648432,-500.0,0.00011094,2]
[347842351,1736148648441,-500.0,0.00011094,2]
[347842352,1736148648451,-500.0,0.00011094,2]
[347842353,1736148648462,-500.0,0.00011094,2]
[347842354,1736148648471,-500.0,0.00011094,2]
[347842355,1736148648481,-500.0,0.00011094,2]
[347842356,1736148648491,-500.0,0.00011094,2]
[347842357,1736148648500,-500.0,0.00011094,2]
[347842358,1736148648510,-500.0,0.00011094,2]
[347842359,1736148648519,-500.0,0.00011094,2]
[347842360,1736148648529,-500.0,0.00011094,2]
[347842361,1736148648539,-500.0,0.00011094,2]
[347842362,1736148648548,-500.0,0.00011094,2]
[347842363,1736148648558,-500.0,0.00011094,2]
[347842364,1736148648567,-500.0,0.00011094,2]
[347842365,1736148648576,-500.0,0.00011094,2]
[347842366,1736148648586,-363.93,0.00011094,2]
[347842367,1736148648596,-500.0,0.00011094,2]
[347842368,1736148648605,-500.0,0.00011094,2]
[347842369,1736148648614,-500.0,0.00011094,2]
[347842370,1736148648624,-500.0,0.00011094,2]
[347842371,1736148648633,-500.0,0.00011094,2]
[347842372,1736148648642,-500.0,0.00011094,2]
[347842373,1736148648651,-500.0,0.00011094,2]
[347842374,1736148648660,-500.0,0.00011094,2]
[347842375,1736148648670,-500.0,0.00011094,2]
[347842376,1736148648679,-500.0,0.00011094,2]
[347842377,1736148648688,-500.0,0.00011094,2]
[347842378,1736148648697,-500.0,0.00011094,2]
[347842379,1736148648706,-500.0,0.00011094,2]
[347842380,1736148648716,-500.0,0.00011094,2]
[347842381,1736148648725,-500.0,0.00011094,2]
[347842382,1736148648736,-500.0,0.00011094,2]
[347842383,1736148648745,-382.53103729,0.00011094,2]
[347842384,1736148648754,-500.0,0.00011094,2]
[347842385,1736148648764,-500.0,0.00011094,2]
[347842386,1736148648773,-532.3,0.00011094,2]
[347842387,1736148648782,-500.0,0.00011094,2]
[347842388,1736148648792,-500.0,0.00011094,2]
[347842389,1736148648801,-500.0,0.00011094,2]
[347842390,1736148648810,-3424.798736,0.00011094,2]
[347842391,1736148648821,-500.0,0.00011094,2]
[347842392,1736148648831,-500.0,0.00011094,2]
[347842393,1736148648840,-3047.430987,0.00011094,2]
[347842394,1736148648851,-593.90671188,0.00011094,2]
[347842395,1736148648860,-157.68863,0.00011094,2]
[347842396,1736148648870,-500.0,0.00011094,2]
[347842397,1736148648880,-156.364714,0.00011094,2]
[347842398,1736148648890,-500.0,0.00011094,2]
[347842399,1736148648900,-500.0,0.00011094,2]
[347842400,1736148648910,-500.0,0.00011094,2]
[347842401,1736148648920,-500.0,0.00011094,2]
[347842402,1736148648930,-500.0,0.00011094,2]
[347842403,1736148648939,-500.0,0.00011094,2]
[347842404,1736148648949,-500.0,0.00011094,2]
[347842405,1736148648959,-500.0,0.00011094,2]
[347842406,1736148648970,-433.047394,0.00011094,2]
[347842407,1736148648979,-500.0,0.00011094,2]
[347842408,1736148648991,-159.832729,0.00011094,2]
[347842409,1736148649001,-2507.84,0.00011094,2]
[347842410,1736148649011,-500.0,0.00011094,2]
[347842411,1736148649020,-1370.97,0.00011094,2]
[347842412,1736148649030,-162.168407,0.00011094,2]
[347842413,1736148649040,-500.0,0.00011094,2]
[347842414,1736148649049,-500.0,0.00011094,2]
[347842415,1736148649059,-500.0,0.00011094,2]
[347842416,1736148649068,-2241.2,0.00011094,2]
[347842417,1736148649078,-500.0,0.00011094,2]
[347842418,1736148649087,-2134.81,0.00011094,2]
[347842419,1736148649098,-500.0,0.00011094,2]
[347842420,1736148649107,-500.0,0.00011094,2]
[347842421,1736148649117,-2868.84,0.00011094,2]
[347842422,1736148649127,-833.89,0.00011094,2]
[347842423,1736148649137,-500.0,0.00011094,2]
[347842424,1736148649147,-500.0,0.00011094,2]
[347842425,1736148649157,-500.0,0.00011094,2]
[347842426,1736148649167,-500.0,0.00011094,2]
[347842427,1736148649176,-500.0,0.00011094,2]
[347842428,1736148649186,-500.0,0.00011094,2]
[347842429,1736148649197,-500.0,0.00011094,2]
[347842430,1736148649207,-500.0,0.00011094,2]
[347842431,1736148649216,-500.0,0.00011094,2]
[347842432,1736148649226,-517.45,0.00011094,2]
[347842433,1736148649236,-543.74,0.00011094,2]
[347842434,1736148649246,-677.58,0.00011094,2]
[347842435,1736148649256,-500.0,0.00011094,2]
[347842436,1736148649266,-500.0,0.00011094,2]
[347842437,1736148649276,-500.0,0.00011095,2]
[347842438,1736148649287,-577.15,0.00011095,2]
[347842439,1736148649296,-500.0,0.00011095,2]
[347842440,1736148649305,-500.0,0.00011095,2]
[347842441,1736148649315,-1235.78,0.00011095,2]
[347842442,1736148649324,-1125.91,0.00011095,2]
[347842443,1736148649334,-2077.52,0.00011095,2]
[347842444,1736148649344,-5328.12,0.00011095,2]
[347842445,1736148649354,-500.0,0.00011095,2]
[347842446,1736148649364,-500.0,0.00011095,2]
[347842447,1736148649378,-500.0,0.00011095,2]
[347842448,1736148649388,-2736.62,0.00011095,2]
[347842449,1736148649397,-1324.28,0.00011095,2]
[347842450,1736148649407,-500.0,0.00011095,2]
[347842451,1736148649418,-592.34,0.00011095,2]
[347842452,1736148649428,-1004.43,0.00011095,2]
[347842453,1736148649438,-7208.87089795,0.00011168,2]
[347842454,1736148649448,-41650.45153858,0.00011168,2]
[347842455,1736148649460,-41650.45153858,0.00011169,2]
[347842456,1736148649470,-200.0,0.0001117,2]
[347842457,1736148649481,-41650.45153858,0.00011171,2]
[347842458,1736148649494,-200.0,0.00011178,2]
[347842459,1736148649504,-200.0,0.0001118,2]
[347842460,1736148649514,-7208.87089795,0.00011185,2]
[347842461,1736148649523,-41650.45153858,0.00011185,2]
[347842462,1736148649534,-41650.45153858,0.0001119,2]
[347842463,1736148649544,-7208.87089795,0.0001119,2]
[347842464,1736148649554,-7208.87089795,0.00011197,2]
[347842465,1736148649564,-41650.45153858,0.00011198,2]
[347842466,1736148649573,-200.0,0.00011198,2]
[347842467,1736148649583,-7208.87089795,0.00011199,2]
[347842468,1736148649592,-7208.87089795,0.00011199,2]
[347842469,1736148649601,-155.76501918,0.00011208,2]
[347842470,1736148649611,-500.0,0.00011227,2]
[347842471,1736148649620,-515.40331169,0.00011227,2]
[347842472,1736148649629,-500.0,0.00011227,2]
[347842473,1736148649638,-500.0,0.00011227,2]
[347842474,1736148649648,-500.0,0.00011227,2]
[347842475,1736148649657,-500.0,0.00011227,2]
[347842476,1736148649666,-500.0,0.00011227,2]
[347842477,1736148649675,-500.0,0.00011227,2]
[347842478,1736148649684,-500.0,0.00011227,2]
[347842479,1736148649693,-500.0,0.00011227,2]
[347842480,1736148649702,-500.0,0.00011227,2]
[347842481,1736148649711,-500.0,0.00011227,2]
[347842482,1736148649720,-500.0,0.00011227,2]
[347842483,1736148649729,-500.0,0.00011227,2]
[347842484,1736148649739,-821.3,0.00011227,2]
[347842485,1736148649748,-500.0,0.00011227,2]
[347842486,1736148649757,-1149.3,0.00011227,2]
[347842487,1736148649766,-621.11,0.00011227,2]
[347842488,1736148649775,-383.92329408,0.00011227,2]
[347842489,1736148649784,-984.11,0.00011227,2]
[347842490,1736148649793,-805.95,0.00011227,2]
[347842491,1736148649802,-572.14,0.00011227,2]
[347842492,1736148649812,-500.0,0.00011227,2]
[347842493,1736148649821,-2816.88,0.00011227,2]
[347842494,1736148649831,-500.0,0.00011228,2]
[347842495,1736148649839,-500.0,0.00011228,2]
[347842496,1736148649849,-736.95,0.00011228,2]
[347842497,1736148649858,-545.67,0.00011228,2]
[347842498,1736148649867,-646.02,0.00011228,2]
[347842499,1736148649876,-500.0,0.00011228,2]
[347842500,1736148649885,-721.18,0.00011228,2]
[347842501,1736148649895,-1480.31,0.00011228,2]
[347842502,1736148649904,-500.0,0.00011228,2]
[347842503,1736148649913,-500.0,0.00011228,2]
[347842504,1736148649922,-500.0,0.00011228,2]
[347842505,1736148649932,-4310.55,0.00011228,2]
[347842506,1736148649941,-500.0,0.00011228,2]
[347842507,1736148649951,-500.0,0.00011228,2]
[347842508,1736148649960,-500.0,0.00011228,2]
[347842509,1736148649969,-3774.3,0.00011228,2]
[347842510,1736148649979,-500.0,0.00011228,2]
[347842511,1736148649989,-500.0,0.00011228,2]
[347842512,1736148649999,-500.0,0.00011228,2]
[347842513,1736148650008,-500.0,0.00011228,2]
[347842514,1736148650018,-500.0,0.00011228,2]
[347842515,1736148650027,-500.0,0.00011228,2]
[347842516,1736148650037,-500.0,0.00011228,2]
[347842517,1736148650047,-500.0,0.00011228,2]
[347842518,1736148650056,-1469.44,0.00011228,2]
[347842519,1736148650065,-500.0,0.00011228,2]
[347842520,1736148650074,-500.0,0.00011228,2]
[347842521,1736148650084,-500.0,0.00011228,2]
[347842522,1736148650094,-500.0,0.00011228,2]
[347842523,1736148650104,-500.0,0.00011228,2]
[347842524,1736148650113,-2509.17,0.00011228,2]
[347842525,1736148650122,-681.73,0.00011228,2]
[347842526,1736148650132,-500.0,0.00011228,2]
[347842527,1736148650141,-587.7,0.00011228,2]
[347842528,1736148650151,-572.64,0.00011228,2]
[347842529,1736148650160,-500.0,0.00011228,2]
[347842530,1736148650169,-500.0,0.00011228,2]
[347842531,1736148650178,-500.0,0.00011228,2]
[347842532,1736148650188,-500.0,0.00011228,2]
[347842533,1736148650198,-1289.22,0.00011228,2]
[347842534,1736148650207,-633.2,0.00011228,2]
[347842535,1736148650216,-1036.88,0.00011228,2]
[347842536,1736148650226,-1030.05,0.00011228,2]
[347842537,1736148650237,-1973.91,0.00011228,2]
[347842538,1736148650247,-500.0,0.00011229,2]
[347842539,1736148650257,-1103.0,0.00011229,2]
[347842540,1736148650267,-3053.59,0.00011229,2]
[347842541,1736148650276,-1157.84,0.00011229,2]
[347842542,1736148650286,-2170.94,0.00011229,2]
[347842543,1736148650295,-1422.85,0.00011229,2]
[347842544,1736148650304,-640.8,0.00011229,2]
[347842545,1736148650313,-1110.1,0.00011229,2]
[347842546,1736148650323,-1977.09,0.00011229,2]
[347842547,1736148650332,-1028.69,0.00011229,2]
[347842548,1736148650341,-640.98,0.00011229,2]
[347842549,1736148650350,-507.4,0.00011229,2]
[347842550,1736148650359,-500.0,0.00011229,2]
[347842551,1736148650369,-816.57,0.00011229,2]
[347842552,1736148650380,-500.0,0.0001123,2]
[347842553,1736148650389,-1000.0,0.0001123,2]
[347842554,1736148650399,-500.0,0.0001123,2]
[347842555,1736148650408,-500.0,0.0001123,2]
[347842556,1736148650418,-1548.44,0.0001123,2]
[347842557,1736148650427,-1173.64,0.0001123,2]
[347842558,1736148650436,-1435.81,0.00011302,2]
[347842559,1736148650448,-1702.32,0.00011302,2]
[347842560,1736148650458,-918.57,0.00011302,2]
[347842561,1736148650467,-500.0,0.00011302,2]
[347842562,1736148650476,-2016.59,0.00011302,2]
[347842563,1736148650487,-500.0,0.00011302,2]
[347842564,1736148650498,-976.71,0.00011302,2]
[347842565,1736148650508,-500.0,0.00011302,2]
[347842566,1736148650517,-995.11,0.00011302,2]
[347842567,1736148650527,-500.0,0.00011302,2]
[347842568,1736148650536,-500.0,0.00011302,2]
[347842569,1736148650546,-500.0,0.00011302,2]
[347842570,1736148650555,-500.0,0.00011354,2]
[347842571,1736148650565,-500.0,0.00011367,2]
[347842572,1736148650575,-519.68,0.00011367,2]
[347842573,1736148650584,-1473.23,0.00011367,2]
[347842574,1736148650594,-500.0,0.00011367,2]
[347842575,1736148650603,-4065.12,0.00011367,2]
[347842576,1736148650612,-684.4,0.00011367,2]
[347842577,1736148650621,-500.0,0.00011367,2]
[347842578,1736148650630,-500.0,0.00011367,2]
[347842579,1736148650640,-500.0,0.00011367,2]
[347842580,1736148650651,-1315.93,0.00011367,2]
[347842581,1736148650660,-500.0,0.00011367,2]
[347842582,1736148650669,-2032.42,0.00011367,2]
[347842583,1736148650678,-500.0,0.00011367,2]
[347842584,1736148650687,-542.92,0.00011367,2]
[347842585,1736148650697,-1026.48,0.00011367,2]
[347842586,1736148650707,-500.0,0.00011367,2]
[347842587,1736148650716,-1012.71,0.00011367,2]
[347842588,1736148650726,-1489.38,0.00011367,2]
[347842589,1736148650737,-952.38,0.00011367,2]
[347842590,1736148650746,-737.3,0.00011367,2]
[347842591,1736148650755,-2722.84,0.00011367,2]
[347842592,1736148650765,-500.0,0.00011368,2]
[347842593,1736148650775,-500.0,0.00011368,2]
[347842594,1736148650784,-500.0,0.00011368,2]
[347842595,1736148650793,-502.23984983,0.00011368,2]
[347842596,1736148650803,-512.81482205,0.00011368,2]
[347842597,1736148650813,-624.18934991,0.00011368,2]
[347842598,1736148650822,-500.0,0.00011368,2]
[347842599,1736148650832,-500.0,0.00011368,2]
[347842600,1736148650842,-500.0,0.00011368,2]
[347842601,1736148650851,-500.0,0.00011368,2]
[347842602,1736148650861,-507.5723525,0.00011368,2]
[347842603,1736148650870,-500.0,0.00011368,2]
[347842604,1736148650880,-500.0,0.00011368,2]
[347842605,1736148650889,-500.0,0.00011368,2]
[347842606,1736148650899,-500.0,0.00011368,2]
[347842607,1736148650908,-500.0,0.00011368,2]
[347842608,1736148650918,-500.0,0.00011368,2]
[347842609,1736148650927,-500.0,0.00011368,2]
[347842610,1736148650937,-184.17,0.00011368,2]
[347842611,1736148650947,-500.0,0.00011368,2]
[347842612,1736148650957,-500.0,0.00011368,2]
[347842613,1736148650966,-500.0,0.00011368,2]
[347842614,1736148650976,-500.0,0.00011368,2]
[347842615,1736148650986,-500.0,0.00011368,2]
[347842616,1736148650996,-500.0,0.00011368,2]
[347842617,1736148651006,-500.0,0.00011368,2]
[347842618,1736148651015,-500.0,0.00011368,2]
[347842619,1736148651024,-500.0,0.00011368,2]
[347842620,1736148651034,-500.0,0.00011368,2]
[347842621,1736148651044,-500.0,0.00011368,2]
[347842622,1736148651054,-251.40058355,0.00011368,2]
[347842623,1736148651063,-500.0,0.00011368,2]
[347842624,1736148651073,-426.999032,0.00011368,2]
[347842625,1736148651082,-500.0,0.00011368,2]
[347842626,1736148651092,-500.0,0.00011368,2]
[347842627,1736148651101,-500.0,0.00011368,2]
[347842628,1736148651111,-532.3,0.00011368,2]
[347842629,1736148651121,-500.0,0.00011368,2]
[347842630,1736148651130,-500.0,0.00011368,2]
[347842631,1736148651139,-500.0,0.00011368,2]
[347842632,1736148651149,-3424.798736,0.00011368,2]
[347842633,1736148651158,-500.0,0.00011368,2]
[347842634,1736148651167,-500.0,0.00011368,2]
[347842635,1736148651177,-3047.430987,0.00011368,2]
[347842636,1736148651186,-157.68863,0.00011368,2]
[347842637,1736148651195,-224.5,0.00011368,2]
[347842638,1736148651204,-156.364714,0.00011368,2]
[347842639,1736148651213,-500.0,0.00011368,2]
[347842640,1736148651222,-157.865274,0.00011368,2]
[347842641,1736148651231,-500.0,0.00011368,2]
[347842642,1736148651242,-500.0,0.00011368,2]
[347842643,1736148651252,-500.0,0.00011368,2]
[347842644,1736148651261,-170.077071,0.00011368,2]
[347842645,1736148651270,-500.0,0.00011368,2]
[347842646,1736148651279,-500.0,0.00011368,2]
[347842647,1736148651289,-500.0,0.00011368,2]
[347842648,1736148651299,-550.01531246,0.00011368,2]
[347842649,1736148651309,-500.0,0.00011368,2]
[347842650,1736148651477,-159.832729,0.00011368,2]
[347842651,1736148651487,-2507.84,0.00011368,2]
[347842652,1736148651497,-500.0,0.00011368,2]
[347842653,1736148651506,-1370.97,0.00011368,2]
[347842654,1736148651516,-162.168407,0.00011368,2]
[347842655,1736148651525,-500.0,0.00011368,2]
[347842656,1736148651535,-500.0,0.00011368,2]
[347842657,1736148651544,-500.0,0.00011368,2]
[347842658,1736148651553,-2241.2,0.00011368,2]
[347842659,1736148651563,-500.0,0.00011368,2]
[347842660,1736148651572,-2134.81,0.00011368,2]
[347842661,1736148651581,-500.0,0.00011368,2]
[347842662,1736148651590,-500.0,0.00011368,2]
[347842663,1736148651600,-2868.84,0.00011368,2]
[347842664,1736148651609,-833.89,0.00011368,2]
[347842665,1736148651618,-500.0,0.00011368,2]
[347842666,1736148651627,-500.0,0.00011368,2]
[347842667,1736148651637,-500.0,0.00011368,2]
[347842668,1736148651646,-500.0,0.00011368,2]
[347842669,1736148651655,-500.0,0.00011368,2]
[347842670,1736148651665,-182.98347624,0.00011368,2]
[347842671,1736148651675,-500.0,0.00011368,2]
[347842672,1736148651684,-500.0,0.00011368,2]
[347842673,1736148651693,-500.0,0.00011368,2]
[347842674,1736148651703,-517.45,0.00011368,2]
[347842675,1736148651712,-543.74,0.00011368,2]
[347842676,1736148651721,-500.0,0.00011368,2]
[347842677,1736148651731,-677.58,0.00011368,2]
[347842678,1736148651740,-500.0,0.00011368,2]
[347842679,1736148651750,-500.0,0.00011369,2]
[347842680,1736148651759,-577.15,0.00011369,2]
[347842681,1736148651769,-500.0,0.00011369,2]
[347842682,1736148651778,-500.0,0.00011369,2]
[347842683,1736148651787,-1235.78,0.00011369,2]
[347842684,1736148651796,-1125.91,0.00011369,2]
[347842685,1736148651806,-2077.52,0.00011369,2]
[347842686,1736148651815,-5328.12,0.00011369,2]
[347842687,1736148651824,-500.0,0.00011369,2]
[347842688,1736148651833,-500.0,0.00011369,2]
[347842689,1736148651842,-500.0,0.00011369,2]
[347842690,1736148651851,-2736.62,0.00011369,2]
[347842691,1736148651861,-1324.28,0.00011369,2]
[347842692,1736148651870,-500.0,0.00011369,2]
[347842693,1736148651879,-592.34,0.00011369,2]
[347842694,1736148651888,-1004.43,0.00011369,2]
[347842695,1736148651897,-155.76501918,0.00011396,2]
[347842696,1736148651907,-500.0,0.00011501,2]
[347842697,1736148651916,-500.0,0.00011501,2]
[347842698,1736148651925,-500.0,0.00011501,2]
[347842699,1736148651935,-343.17042124,0.00011501,2]
[347842700,1736148651945,-500.0,0.00011501,2]
[347842701,1736148651954,-500.0,0.00011501,2]
[347842702,1736148651965,-500.0,0.00011501,2]
[347842703,1736148651973,-500.0,0.00011501,2]
[347842704,1736148651983,-414.62343423,0.00011501,2]
[347842705,1736148651993,-500.0,0.00011501,2]
[347842706,1736148652002,-500.0,0.00011501,2]
[347842707,1736148652012,-500.0,0.00011501,2]
[347842708,1736148652021,-500.0,0.00011501,2]
[347842709,1736148652031,-821.3,0.00011501,2]